Cogmind - Beta 16 @@@ ROGUE MODE // 2025.11.24 @ 20:53:58 Player: AngelSpirit Result: Destroyed by G-47 Trooper with Particle Gun Performance ------------- Evolutions (0) 0 Regions Visited (3) 600 Robots Destroyed (36) 180 Value Destroyed (881) 881 Prototype IDs (4) 80 Alien Tech Used (0) 0 Bonus (-9) -9 TOTAL SCORE: 1732 Bonus ------- Follower Combat Kills 60 Friendly Fire -69 Cogmind --------- Core Integrity 0/250 Matter 290/300 Energy 250/250 System Corruption 0% Temperature Cool (9) Movement Walking (130) Location -10/Subcaves Parts ------- > --- POWER (1) -------- Ion Engine > --- PROPULSION (2) --- Carbon-fiber Leg Makeshift Leg > --- UTILITY (2) ------ Scrap Shield > --- WEAPON (2) ------- Subdweller Beam Cannon Grenade Launcher > --- INVENTORY (5) ---- Medium Storage Unit High-capacity Matter Pod (200) Structural Scanner Hacking Suite Makeshift System Shield Peak State ------------ > --- POWER ------------ Ion Engine > --- PROPULSION ------- Carbon-fiber Leg Carbon-fiber Leg > --- UTILITY ---------- Scrap Shield > --- WEAPON ----------- Beamcaster Grenade Launcher > --- INVENTORY -------- Medium Storage Unit High-capacity Matter Pod Structural Scanner Hacking Suite [Rating: 17] Favorites ----------- Power Ion Engine Engine Ion Engine Propulsion Compact Wheel Leg Carbon-fiber Leg Wheel Compact Wheel Utility Medium Storage Unit Device Sensor Array Storage Medium Storage Unit Processor Targeting Computer Protection Scrap Shield Weapon Improved EM Shotgun Energy Gun Improved EM Shotgun Energy Cannon Subdweller Beam Cannon Ballistic Gun Assault Rifle Ballistic Cannon Light Cannon Launcher Grenade Launcher Build | -11 -10 -10 -10 ------- Run | Yrd Mat Min Sub Slots Evolved . | . . . . Power . | . . . . Propulsion . | . . . . Utility . | . . . . Weapon . | . . . . Parts Attached 30 | 6 9 4 11 Power 4 | 1 1 2 . Engine 4 | 1 1 2 . Core . | . . . . Reactor . | . . . . Propulsion 8 | 2 . . 6 Treads . | . . . . Leg 3 | . . . 3 Wheel 5 | 2 . . 3 Hover . | . . . . Flight . | . . . . Utility 7 | 1 4 1 1 Device 1 | . . 1 . Storage 2 | 1 1 . . Processor 1 | . 1 . . Hackware . | . . . . Protection 3 | . 2 . 1 Artifact . | . . . . Weapon 11 | 2 4 1 4 Energy Gun 5 | 1 2 1 1 Energy Cannon 1 | . . . 1 Ballistic Gun 1 | 1 . . . Ballistic Cannon 2 | . 2 . . Launcher 2 | . . . 2 Special Weapon . | . . . . Impact Weapon . | . . . . Slashing Weapon . | . . . . Piercing Weapon . | . . . . Special Melee Weapon . | . . . . Unidentified Prototypes 1 | . 1 . . Parts Lost 8 | . . 1 7 Power . | . . . . Propulsion 4 | . . . 4 Utility 1 | . . . 1 Weapon 3 | . . 1 2 Highest Loss Streak 5 | . . 1 5 To Critical Strikes . | . . . . Average Backups 6 | . 6 9 5 Power . | . . . . Propulsion 1 | . 1 2 . Utility 3 | . 2 5 4 Weapon 1 | . 2 2 . Tool/Special . | . . . . Unused Backups 9 | . 1 1 7 Power . | . . . . Propulsion . | . . . . Utility 7 | . . 1 6 Weapon 2 | . 1 . 1 Tool/Special . | . . . . Average Slot Usage (%) 93 | . 99 100 85 Engine 14 | . 14 14 14 Leg 10 | . . . 23 Wheel 17 | . 28 28 4 Device 4 | . . 13 1 Storage 8 | . 14 14 2 Protection 9 | . 12 . 11 Energy Gun 15 | . 23 28 3 Energy Cannon 4 | . . . 10 Ballistic Cannon 1 | . 3 . . Launcher 5 | . . . 12 Peak Build Rating 17 | 6 13 13 17 Average Rating 13 | 4 11 12 14 On Entrance 7 | . 6 13 12 Avg Prop Armor Cover (%) . | . . . . Naked Turns . | . . . . Heaviest Build 39 | 14 26 26 39 Greatest Support 35 | 32 32 32 35 Greatest Overweight (x) 1 | . . . 1 Average Overweight (x) . | . . . . Largest Inventory Capacity 10 | 8 10 10 10 Average Capacity 7 | 6 9 10 5 Most Carried 10 | . 10 10 10 Average Carried 6 | . 6 9 5 Final Capacity 10 | 8 10 10 5 Final Carried 10 | . 10 10 5 Class Distribution -------------------- 62% | Mutant 37% | Scavenger-Mutant Dominant Class ---------------- Mutant | -10/Materials Mutant | -10/Mines Scavenger-Mutant | -10/Subcaves Resources | -11 -10 -10 -10 ----------- Run | Yrd Mat Min Sub Matter Collected 812 | 209 278 130 195 Remotely . | . . . . Salvage Created 1177 | . 482 418 277 Parts 70 | . 32 20 18 Haulers Intercepted 1 | . 1 . . Recyclers Shooed . | . . . . Parts Field Recycled . | . . . . Retrieved Matter . | . . . . Parts Self-Destructed 11 | . . . 11 Prevented 1 | . . . 1 Parts Restored . | . . . . Kills | -11 -10 -10 -10 ------- Run | Yrd Mat Min Sub Combat Hostiles Destroyed 27 | . 10 8 9 Guns 13 | . 6 5 2 Cannons 5 | . 3 . 2 AOE 9 | . 1 3 5 Classes Destroyed 10 | . 7 1 2 Worker 1 | . . 1 . Builder 1 | . 1 . . Hauler 1 | . 1 . . Recycler 1 | . 1 . . Operator 1 | . 1 . . Turret 1 | . . . 1 Watcher 3 | . 3 . . Swarmer 10 | . 6 . 4 Grunt 12 | . 4 8 . Subdweller 5 | . . . 5 Best Kill Streak 3 | . 3 2 3 Combat Bots Only 3 | . 3 2 3 Max Kills in Single Turn 3 | . 2 2 3 Gunslinging . | . . . . Exploded 3 | . 1 2 3 Melee . | . . . . Uniques/NPCs Destroyed . | . . . . Combat | -11 -10 -10 -10 -------- Run | Yrd Mat Min Sub Hostile Shots Fired 99 | . 17 14 68 Missed 31 | . 2 5 24 Hits 68 | . 15 9 44 Projectile 68 | . 15 9 44 Critical Strikes 1 | . . 1 . Damage Taken 1098 | . 182 190 726 Core 250 | . 9 46 195 Absorbed by Shields . | . . . . Core Remaining (%) 100 | 100 . . . Volleys Fired 58 | . 17 15 26 Largest 2 | . 2 2 2 Hottest 90 | . 90 90 90 Shots Fired 91 | . 34 29 28 Gun 65 | . 26 29 10 Cannon 16 | . 8 . 8 Launcher 10 | . . . 10 Special . | . . . . Kinetic 8 | . 8 . . Thermal 9 | . . . 9 Explosive 10 | . . . 10 Electromagnetic 64 | . 26 29 9 Robot Hit Streak 9 | . 6 9 7 Robot Miss Streak 5 | . 5 2 4 Penetration Max . | . . . . Secondary Targets 2 | . 1 . 1 Max Gunslinging Chain 1 | . 1 . 1 Shots Hit Robots 66 | . 24 26 16 Core Hits 62 | . 22 18 22 Critical Kills . | . . . . Critical Parts Destroyed . | . . . . Critical Strikes 2 | . 2 . . Blast 2 | . 2 . . Melee Attacks . | . . . . Impact . | . . . . Slashing . | . . . . Piercing . | . . . . Sneak Attacks . | . . . . Combat Hostiles . | . . . . Follow-up Attacks . | . . . . Damage Inflicted 2207 | . 618 662 927 Guns 919 | . 297 484 138 Cannons 233 | . 98 . 135 Explosions 1055 | . 223 178 654 Melee . | . . . . Ramming . | . . . . Kinetic 98 | . 98 . . Thermal 556 | . 223 178 155 Explosive 654 | . . . 654 Electromagnetic 899 | . 297 484 118 Impact . | . . . . Slashing . | . . . . Piercing . | . . . . Highest Corruption . | . . . . Average Corruption . | . . . . Corruption Purged . | . . . . Corruption Blocked . | . . . . Overload Shots . | . . . . Overflow Damage . | . . . . Projectiles . | . . . . Explosions . | . . . . Melee . | . . . . Knockbacks 2 | . 2 . . Impact . | . . . . Kinetic 2 | . 2 . . Secondary . | . . . . Self-Inflicted Damage 144 | . 39 67 38 Shots 6 | . 1 3 2 Rammed . | . . . . Targets Rammed . | . . . . Kicked . | . . . . Crushed . | . . . . Highest Temperature 174 | . 174 172 20 Average Temperature 57 | . 57 64 10 Received Heat Transfer 330 | . 42 90 198 Siege Activations . | . . . . Martial Activations . | . . . . Shielding Activations . | . . . . Robots Disrupted . | . . . . Combat Hostiles . | . . . . Robots Corrupted . | . . . . Combat Hostiles . | . . . . Parts Fried . | . . . . Impact Corruptions . | . . . . Robots Melted . | . . . . Combat Hostiles . | . . . . Parts Melted 2 | . . . 2 Heat Transferred 722 | . 200 300 222 Parts Sabotaged . | . . . . Parts Stolen . | . . . . Parts Stripped . | . . . . Power Chain Reactions 8 | . 3 5 . Alert | -11 -10 -10 -10 ------- Run | Yrd Mat Min Sub Maximum Alert Level . | . . . . Low Security (%) 100 | 100 100 100 . Level 1 . | . . . . Level 2 . | . . . . Level 3 . | . . . . Level 4 . | . . . . Level 5 . | . . . . High Security . | . . . . Max Security . | . . . . Peak Influence 132 | . 113 132 . Initial 11 | . . 11 . Average 43 | . 46 43 . Influence Increases 871 | . 347 322 202 Destroy 0b10 Robot/C 500 | . 200 200 100 Destroy 0b10 Robot/NC 40 | . 35 5 . Destroy Leader 98 | . 38 50 10 Allied During Kill 26 | . . 24 2 Successful Hack 56 | . 43 13 . Destroy Structure 46 | . 16 30 . Partial Spotted 15 | . 15 . . Lose Combat Pursuer 90 | . . . 90 Influence Decreases 871 | . 317 244 310 Entered New Map 76 | . . 19 57 Time Decay 675 | . 317 215 143 Lost Part 80 | . . 10 70 Lost Ally 40 | . . . 40 Squads Dispatched . | . . . . Investigation . | . . . . Extermination . | . . . . Reinforcement . | . . . . Assault . | . . . . Garrison . | . . . . Intercept . | . . . . Searches Triggered . | . . . . Construction Impeded . | . . . . Haulers Reinforced . | . . . . Active Scanning Responses . | . . . . Cargo Convoy Interrupts . | . . . . Stealth | -11 -10 -10 -10 --------- Run | Yrd Mat Min Sub Distress Signals . | . . . . Communications Jammed . | . . . . Distress Signals . | . . . . Times Spotted 53 | . 15 10 28 Peak Tracking Total 10 | . 3 2 10 Tactical Retreats 2 | . . . 2 Traps | -11 -10 -10 -10 ------- Run | Yrd Mat Min Sub Traps Triggered 1 | . . . 1 Indirectly . | . . . . Trap Hack Attempts . | . . . . Triggered . | . . . . Disarmed . | . . . . Reprogrammed . | . . . . Reused . | . . . . Traps Extracted . | . . . . Installed . | . . . . Triggered . | . . . . Machines | -11 -10 -10 -10 ---------- Run | Yrd Mat Min Sub Machines Disabled . | . . . . Max in Single Turn . | . . . . Machines Repaired . | . . . . Machines Dismantled . | . . . . Machines Sabotaged . | . . . . Overloaded Fab Kills . | . . . . Hacking | -11 -10 -10 -10 --------- Run | Yrd Mat Min Sub Machines Accessed 6 | . 5 1 . Terminals 6 | . 5 1 . Fabricators . | . . . . Repair Stations . | . . . . Recycling Units . | . . . . Scanalyzers . | . . . . Garrison Access . | . . . . Total Hacks 24 | . 19 5 . Successful 12 | . 10 2 . Failed 12 | . 9 3 . Catastrophic 3 | . 1 2 . Database Lockouts . | . . . . Manual 14 | . 10 4 . Terminals 24 | . 19 5 . Fabricators . | . . . . Repair Stations . | . . . . Recycling Units . | . . . . Scanalyzers . | . . . . Garrison Access . | . . . . Terminal Hacks 8 | . 6 2 . Robot Analysis 1 | . 1 . . Prototype ID Bank 1 | . 1 . . Branch Access Points 2 | . 1 1 . Locate Traps 1 | . 1 . . Registered Components 1 | . 1 . . Zone Layout 2 | . 1 1 . Fabricator Hacks . | . . . . Repair Station Hacks . | . . . . Recycling Unit Hacks . | . . . . Scanalyzer . | . . . . Garrison Access Hacks . | . . . . Unauthorized Hacks 4 | . 4 . . Terminals 4 | . 4 . . Botnet 4 | . 4 . . Fabricators . | . . . . Repair Stations . | . . . . Recycling Units . | . . . . Scanalyzers . | . . . . Garrison Access . | . . . . Data Cores Recovered 1 | . 1 . . Used . | . . . . Hacking Detections 6 | . 5 1 . Full Trace Events 1 | . . 1 . Feedback Events . | . . . . Feedback Blocked . | . . . . Robot Schematics Acquired . | . . . . Robots Built . | . . . . Authchips . | . . . . Time . | . . . . Total Robot Build Rating . | . . . . Part Schematics Acquired . | . . . . Parts Built . | . . . . Authchips . | . . . . Time . | . . . . Total Part Build Rating . | . . . . Part Studies Acquired . | . . . . Parts Repaired . | . . . . Time . | . . . . Parts Recycled . | . . . . Recycled Matter . | . . . . Retrieved Matter . | . . . . Retrieved Components . | . . . . Parts Scanalyzed . | . . . . Part Schematics Acquired . | . . . . Parts Damaged . | . . . . Bothacking | -11 -10 -10 -10 ------------ Run | Yrd Mat Min Sub Used RIF Installer . | . . . . Robots Hacked . | . . . . Non-combat . | . . . . Combat . | . . . . Robot Hacks Applied . | . . . . Relay Couplers Released . | . . . . Fabnet Peak Effective % . | . . . . Robots Rewired . | . . . . Allies Hacked . | . . . . Hacks Repelled . | . . . . Allies | -11 -10 -10 -10 -------- Run | Yrd Mat Min Sub Total Allies 2 | . . 2 . Largest Group 2 | . . 2 2 Highest-Rated Group 45 | . . 45 45 Highest-Rated Ally 31 | . . 31 31 Total Orders . | . . . . Ally Attacks 9 | . . 5 4 Total Damage 127 | . . 61 66 Kills 2 | . . 2 . Allies Corrupted . | . . . . Allies Melted . | . . . . Intel | -11 -10 -10 -10 ------- Run | Yrd Mat Min Sub Active Infowar (turns) 726 | . . 589 137 Sensors 726 | . . 589 137 Robot Analysis Total 1 | . 1 . . Derelict Logs Recovered 1 | . . . 1 Drone Launches . | . . . . Drone Recoveries . | . . . . Exploration | -11 -10 -10 -10 ------------- Run | Yrd Mat Min Sub Turns Passed 2485 | 38 767 620 1060 Spaces Moved 1879 | 31 595 507 746 Core 2 | 2 . . . Treads . | . . . . Legs 626 | . . . 626 Wheels 1251 | 29 595 507 120 Hover . | . . . . Flight . | . . . . Fastest Speed 50 | 50 100 100 90 Average Speed 109 | 96 100 100 124 Slowest Speed 200 | 100 100 100 200 Overloaded Moves . | . . . . Propulsion Burnouts . | . . . . Robots Hopped . | . . . . Potential Cave-ins . | . . . . Cave-ins Triggered . | . . . . Exploration Rate (%) 52 | 3 81 86 40 Regions Visited 3 Branch Regions 2 Pre-discovered Areas . | . . . . Known Exits Taken 1 | . 1 . . Unknown Exits Taken 2 | 1 . 1 . Scrap Searched 8 | . . 1 7 Spaces Dug 21 | . . . 21 Terrain Destroyed 100 | . 14 36 50 Melee . | . . . . Projectile . | . . . . AOE 100 | . 14 36 50 Terrain Rammed . | . . . . Walls Destroyed . | . . . . Machines Disabled . | . . . . Actions | -11 -10 -10 -10 --------- Run | Yrd Mat Min Sub Total 2210 | 36 733 592 849 Wait 201 | . 93 60 48 Move 1876 | 30 594 506 746 Hop . | . . . . Pick Up 17 | . 11 3 3 Fast Attach 22 | 6 8 1 7 Attach 6 | . . 1 5 Detach 1 | . . . 1 Swap 3 | . 1 2 . Drop 21 | . 9 4 8 Fire 58 | . 17 15 26 Melee . | . . . . Ram . | . . . . Kick . | . . . . Crush . | . . . . Escape Stasis . | . . . . Rewire . | . . . . Trap . | . . . . Miscellaneous 5 | . . . 5 Route ------- -11/Scrapyard -10/Materials (discovered 4 exits: [*Mat x3] / *Min) -10/Mines (discovered 3 exits: [*Mat x2] / [*Sub]) -10/Subcaves (discovered 1 exit: [*Rec]) History --------- Turn | Location | Event 12 | -11/Scrapyard | Discovered new exit (range 16) 39 | -11/Scrapyard | Entered Materials 155 | -10/Materials | Identified exit to Mines 183 | -10/Materials | Discovered new exit (range 10) 317 | -10/Materials | Build established: Mutant 376 | -10/Materials | Discovered new exit (range 16) 711 | -10/Materials | Discovered new exit (range 12) 806 | -10/Materials | Entered Mines 845 | -10/Mines | Discovered new exit (range 8) 859 | -10/Mines | Discovered new exit (range 14) 1413 | -10/Mines | Discovered new exit (range 6) 1426 | -10/Mines | Entered Subcaves 1426 | -10/Subcaves | Accompanied by 2 allies 1431 | -10/Subcaves | Led the pair of lost Derelicts to an unsafe place 1465 | -10/Subcaves | Discovered new exit (range 15) 1558 | -10/Subcaves | Ambushed by swarm of Subdwellers 1563 | -10/Subcaves | Ambushed by Subdwellers from Twisted Machinery 1563 | -10/Subcaves | Ambushed by Subdwellers from Twisted Machinery 1563 | -10/Subcaves | Ambushed by Subdwellers from Twisted Machinery 1565 | -10/Subcaves | Core integrity fell below 50% 1611 | -10/Subcaves | Lost 5 parts (3n1u1w) 1624 | -10/Subcaves | Lost 3 allies 1866 | -10/Subcaves | Build established: Scavenger-Mutant 2035 | -10/Subcaves | Core integrity fell below 20% 2486 | -10/Subcaves | Destroyed by G-47 Trooper with Particle Gun Last Messages --------------- 02201_ Searching scrap... 02201_ Found Sub. Optics. 02201_ Found 63 Matter. 02204_ Searching scrap... 02204_ Found Humpback. 02204_ Found 53 Matter. 02205_ Searching scrap... 02205_ Found Battle Cannon. 02205_ Found Sub. Laser. 02205_ Found 65 Matter. 02208_ Searching scrap... 02208_ Found Mak. System Shield. 02208_ Found 32 Matter. 02210_ Dropped Beamcaster. 02210_ Beamcaster crushed and broken. 02211_ Acquired Mak. System Shield. 02256_ Subatomizers dissect the Disposable Heat Sink. 02411_ 8E-XAG(R) destroyed. 02474_ Y7-MSA(g) destroyed. Map ----- +----------------------------------------------------+ | #%= %## ##?????????????????????????????????## | | ###="## ###????????????????????????????????# | | ?#% ## ###??????????????????????????????# | | ###=# ### #????????????????????????###???# | | # "&%[ #?# #???????????????????????## ##??## | | # &= #?### ##????????????????###?#### ####### | | ## #???####?????#####???????# ### ## | | #????????????# #??????## | | # #????####????# #??????# | | # ##????# #????## #??????## | | ### ##?????## #??#### ##?????# # ## | | ## ##?????## #### #?????# ## #? | | #????## #?????## #### # | | #????# #?????# ##?### | | #???## ## #?????## #???###### # | | ##### ### ####??# ##????????##### | | # ### ##?# ##????????????? | | # ### ### #????????????? | | ##?# #????????????? | | ###??# ##????????????? | | # ### #????## ## ## ##????????????? | | # #### #?????# ### ##???????????? | | ## #####?????## ## #???????????? | | ?# ##????????## ##???????????? | | ?# #?????????## #????????????? | | ?## #??????????# @ ### #???????????? | | ??#### #??????????#### ##?? #???????????? | | ?????######?????????????# #??? #???????????? | | ????????????????????????#g #?? ##???????????? | | ????????????????????????g #?? ##????????????? | | ??????????????????????? %! #? #?????????????? | | ??????????????????????? = ##??###?????????????? | | ??????????????????????? # ???????????????????? | | ?????????????????????? ??????????????????? | | ?????????????????????? ?????????????????? | | ????????????????????? ? ????????????????? | | ????????????????????? #####?## #???????????????? | | ???????????????????? ???????? #???????????????? | | ???????????????????? ????????? #???????????????? | | ??????????????????? ?????????##???????????????? | | ??????????????????? ???????????????????????????? | | ????????????????????? ???????????????????????????? | | ?????????????????????????????????????????????????? | | ?????????????????????????????????????????????????? | | ?????????????????????????????????????????????????? | | ?????????????????????????????????????????????????? | | ?????????????????????????????????????????????????? | | ?????????????????????????????????????????????????# | | ????????????????????????????????????????????????# | | ????????????????????????????????????????????????# | +----------------------------------------------------+ Best States ------------- Heat Dissipation 25 Energy Generation 10 Energy Capacity 250 Matter Stores 300 Matter Capacity 300 Sight Range 16 Robot Scan Range 14 Terrain Scan Density 10 Armor Coverage 800 Evasion (%) 55 Targeting Accuracy 5 Item Schematics ----------------- None Robot Schematics ------------------ None Fabricated ------------ Nothing Repaired ---------- Nothing Studied --------- None Alien Tech Used ----------------- None Achievements -------------- None Challenges ------------ None Game ------ Seed CatalystAntisysStrikerail Manual? 0 Play Time 00:21:07 Cumulative 117.1 hours Start 2025.11.24 @ 20:33:26 End 2025.11.24 @ 20:53:58 Sessions 1 Manual Loads 0 Difficulty Rogue Special Mode None Game No. 60 Rogue 60 Adventurer 0 Explorer 0 Win Type - Total 1 Types 1/0/0/0/0/0/0/0/0/0 Lore% 58 Gallery% 57 Achievement% 43 Wizard Run 0 Options --------- Layout 1 ASCII 0 Keyboard 0 Movement Mouse Keybinds 0 Fullscreen 2 Font 32/SmallcapsGlow Map View 50x35 Zoom Use 0% Tactical HUD 1 Map Filters NONE Filters NONE Steam 1 RUN: 701e549e-f195-4c08-9573-99ddd71f2885